fUSD/lending_fUSD_20240503
["ID","MTS","AMOUNT","RATE_DAILY","PERIOD"]
[325347644,1714746640495,-630.13626007,0.00043835,30]
[325347646,1714746640505,-923.02,0.00043835,30]
[325347648,1714746640516,-1311.13,0.00043835,30]
[325347650,1714746640526,-500.0,0.00043835,30]
[325347652,1714746640535,-511.97,0.00043835,30]
[325347654,1714746640545,-861.91,0.00043835,30]
[325347656,1714746640554,-155.0,0.00043835,30]
[325347658,1714746640564,-570.85,0.00043835,30]
[325347660,1714746640573,-500.0,0.00043835,30]
[325347662,1714746640583,-1148.44,0.00043835,30]
[325347664,1714746640593,-500.0,0.00043835,30]
[325347666,1714746640602,-906.38,0.00043835,30]
[325347668,1714746640611,-590.49,0.00043835,30]
[325347670,1714746640622,-606.23,0.00043835,30]
[325347672,1714746640631,-1223.93,0.00043835,30]
[325347674,1714746640640,-500.0,0.00043835,30]
[325347676,1714746640650,-1228.91,0.00043835,30]
[325347678,1714746640659,-500.0,0.00043835,30]
[325347680,1714746640668,-500.0,0.00043835,30]
[325347682,1714746640678,-500.0,0.00043835,30]
[325347685,1714746640688,-500.0,0.00043835,30]
[325347687,1714746640697,-500.0,0.00043835,30]
[325347689,1714746640707,-1222.58,0.00043835,30]
[325347691,1714746640718,-475.55732523,0.00043835,30]
[325347693,1714746640727,-500.0,0.00043835,30]
[325347695,1714746640737,-500.0,0.00043835,30]
[325347697,1714746640747,-500.0,0.00043835,30]
[325347699,1714746640756,-500.0,0.00043835,30]
[325347701,1714746640766,-500.0,0.00043835,30]
[325347703,1714746640775,-500.0,0.00043835,30]
[325347705,1714746640785,-1085.79,0.00043835,30]
[325347707,1714746640794,-629.29,0.00043835,30]
[325347709,1714746640804,-1142.25,0.00043835,30]
[325347711,1714746640813,-669.33,0.00043835,30]
[325347713,1714746640823,-696.52,0.00043835,30]
[325347715,1714746640832,-500.0,0.00043835,30]
[325347717,1714746640842,-500.0,0.00043835,30]
[325347719,1714746640851,-1548.35,0.00043835,30]
[325347721,1714746640860,-500.0,0.00043835,30]
[325347723,1714746640872,-500.0,0.00043835,30]
[325347725,1714746640882,-500.0,0.00043835,30]
[325347727,1714746640892,-1181.03,0.00043835,30]
[325347729,1714746640904,-570.76,0.00043835,30]
[325347731,1714746640913,-500.0,0.00043835,30]
[325347733,1714746640923,-500.0,0.00043835,30]
[325347735,1714746640932,-1155.63,0.00043835,30]
[325347737,1714746640943,-500.0,0.00043835,30]
[325347739,1714746640953,-500.0,0.00043835,30]
[325347741,1714746640963,-1465.49,0.00043835,30]
[325347743,1714746640972,-500.0,0.00043835,30]
[325347745,1714746640982,-500.0,0.00043835,30]
[325347747,1714746640992,-556.2,0.00043835,30]
[325347749,1714746641002,-886.67,0.00043835,30]
[325347751,1714746641012,-165.66158289,0.00043835,30]
[325347753,1714746641022,-500.0,0.00043835,30]
[325347755,1714746641032,-515.1,0.00043835,30]
[325347795,1714746641414,-622.32,0.00043835,30]
[325347796,1714746641425,-500.0,0.00043835,30]
[325347797,1714746641435,-1159.22,0.00043835,30]
[325347798,1714746641445,-1401.63,0.00043835,30]
[325347799,1714746641455,-500.81964605,0.00043835,30]
[325347800,1714746641464,-500.0,0.00043835,30]
[325347801,1714746641474,-720.91,0.00043835,30]
[325347802,1714746641483,-500.0,0.00043835,30]
[325347803,1714746641492,-500.0,0.00043835,30]
[325347804,1714746641502,-823.65,0.00043835,30]
[325347805,1714746641512,-500.0,0.00043835,30]
[325347807,1714746641522,-500.0,0.00043835,30]
[325347808,1714746641531,-500.0,0.00043835,30]
[325347810,1714746641540,-1399.37,0.00043835,30]
[325347812,1714746641550,-1162.31,0.00043835,30]
[325347814,1714746641559,-718.76,0.00043835,30]
[325347816,1714746641569,-501.75,0.00043835,30]
[325347819,1714746641581,-500.0,0.00043835,30]
[325347821,1714746641591,-818.42,0.00043835,30]
[325347823,1714746641600,-500.0,0.00043835,30]
[325347825,1714746641609,-500.0,0.00043835,30]
[325347827,1714746641619,-500.0,0.00043835,30]
[325347829,1714746641628,-500.0,0.00043835,30]
[325347831,1714746641637,-500.0,0.00043835,30]
[325347833,1714746641648,-500.0,0.00043835,30]
[325347835,1714746641657,-500.0,0.00043835,30]
[325347837,1714746641666,-1398.67,0.00043835,30]
[325347839,1714746641676,-517.76,0.00043835,2]
[325347841,1714746641685,-1543.4,0.00043835,30]
[325347843,1714746641695,-500.0,0.00043835,30]
[325347845,1714746641704,-500.0,0.00043835,30]
[325347847,1714746641714,-500.0,0.00043835,30]
[325347849,1714746641723,-500.0,0.00043835,30]
[325347851,1714746641732,-502.1455833,0.00043835,30]
[325347853,1714746641742,-500.0,0.00043835,30]
[325347855,1714746641751,-500.0,0.00043835,30]
[325347857,1714746641760,-2107.48,0.00043835,30]
[325347859,1714746641770,-500.0,0.00043835,30]
[325347861,1714746641780,-500.0,0.00043835,30]
[325347863,1714746641789,-892.59,0.00043835,30]
[325347865,1714746641799,-500.0,0.00043835,30]
[325347867,1714746641809,-1309.27,0.00043835,30]
[325347869,1714746641818,-500.0,0.00043835,30]
[325347871,1714746641828,-534.14,0.00043835,30]
[325347873,1714746641837,-500.0,0.00043835,30]
[325347875,1714746641847,-500.0,0.00043835,30]
[325347877,1714746641857,-1314.06,0.00043835,30]
[325347879,1714746641866,-1566.34,0.00043835,30]
[325347881,1714746641878,-500.0,0.00043835,30]
[325347883,1714746641888,-1921.77,0.00043835,30]
[325347885,1714746641898,-500.0,0.00043835,30]
[325347887,1714746641908,-500.0,0.00043835,30]
[325347889,1714746641918,-500.0,0.00043835,30]
[325347891,1714746641927,-500.0,0.00043835,30]
[325347893,1714746641936,-1286.87,0.00043835,30]
[325347895,1714746641946,-1407.32,0.00043835,30]
[325347897,1714746641957,-500.0,0.00043835,30]
[325347899,1714746641967,-500.0,0.00043835,30]
[325347901,1714746641977,-500.0,0.00043835,30]
[325347903,1714746641986,-1193.46,0.00043835,30]
[325347905,1714746641996,-915.74,0.00043835,30]
[325347907,1714746642006,-2031.66,0.00043835,30]
[325347909,1714746642016,-500.0,0.00043835,30]
[325347911,1714746642025,-1305.34,0.00043835,30]
[325347913,1714746642035,-500.0,0.00043835,30]
[325347915,1714746642044,-500.0,0.00043835,30]
[325347917,1714746642054,-500.0,0.00043835,30]
[325347919,1714746642063,-500.0,0.00043835,30]
[325347921,1714746642073,-500.0,0.00043835,30]
[325347923,1714746642082,-500.0,0.00043835,30]
[325347925,1714746642092,-500.0,0.00043835,30]
[325347927,1714746642102,-500.0,0.00043835,30]
[325347929,1714746642112,-500.0,0.00043835,30]
[325347931,1714746642122,-500.0,0.00043835,30]
[325347933,1714746642131,-500.0,0.00043835,30]
[325347935,1714746642141,-1379.8,0.00043835,30]
[325347937,1714746642150,-500.0,0.00043835,30]
[325347939,1714746642160,-500.0,0.00043835,30]
[325347941,1714746642170,-932.62,0.00043835,30]
[325347943,1714746642179,-2704.12,0.00043835,30]
[325347945,1714746642188,-500.0,0.00043835,30]
[325347947,1714746642198,-1116.42,0.00043835,30]
[325347949,1714746642208,-500.0,0.00043835,30]
[325347951,1714746642217,-740.51,0.00043835,30]
[325347953,1714746642230,-1198.75,0.00043835,30]
[325347955,1714746642241,-973.98,0.00043835,30]
[325347957,1714746642251,-500.0,0.00043835,30]
[325347959,1714746642261,-500.0,0.00043835,30]
[325347961,1714746642272,-927.08,0.00043835,30]
[325347963,1714746642281,-500.0,0.00043835,30]
[325347966,1714746642291,-1187.48,0.00043835,30]
[325347968,1714746642300,-500.0,0.00043835,30]
[325347970,1714746642311,-807.98,0.00043835,30]
[325347972,1714746642321,-500.0,0.00043835,30]
[325347974,1714746642331,-500.0,0.00043835,30]
[325347976,1714746642342,-1357.83,0.00043835,30]
[325347978,1714746642351,-257.36598743,0.00043835,30]
[325347980,1714746642361,-500.0,0.00043835,30]
[325347982,1714746642370,-500.0,0.00043835,30]
[325347984,1714746642380,-500.0,0.00043835,30]
[325347986,1714746642390,-557.52414661,0.00043835,30]
[325347988,1714746642400,-967.91,0.00043835,30]
[325347990,1714746642410,-500.0,0.00043835,30]
[325347992,1714746642420,-500.0,0.00043835,30]
[325347994,1714746642430,-500.0,0.00043835,30]
[325347996,1714746642440,-500.0,0.00043835,30]
[325347998,1714746642450,-500.0,0.00043835,30]
[325348000,1714746642460,-214.52,0.00043835,30]
[325348002,1714746642470,-997.21,0.00043835,30]
[325348004,1714746642480,-2201.97,0.00043835,30]
[325348006,1714746642490,-1302.53,0.00043835,30]
[325348009,1714746642509,-500.0,0.00043835,30]
[325348011,1714746642522,-477.93739784,0.00043835,30]
[325348014,1714746642533,-500.0,0.00043835,30]
[325348016,1714746642542,-500.0,0.00043835,30]
[325348018,1714746642553,-500.0,0.00043835,30]
[325348020,1714746642563,-500.0,0.00043835,30]
[325348022,1714746642573,-500.0,0.00043835,30]
[325348024,1714746642583,-500.0,0.00043835,30]
[325348026,1714746642593,-500.0,0.00043835,30]
[325348028,1714746642604,-1683.59,0.00043835,30]
[325348030,1714746642614,-936.09,0.00043835,30]
[325348032,1714746642624,-500.0,0.00043835,30]
[325348034,1714746642634,-500.0,0.00043835,30]
[325348036,1714746642645,-500.0,0.00043835,30]
[325348038,1714746642655,-500.0,0.00043835,30]
[325348040,1714746642665,-500.0,0.00043835,30]
[325348043,1714746642676,-768.21,0.00043835,30]
[325348045,1714746642686,-500.0,0.00043835,30]
[325348047,1714746642696,-500.0,0.00043835,30]
[325348049,1714746642707,-1784.6,0.00043835,30]
[325348051,1714746642717,-500.0,0.00043835,30]
[325348053,1714746642727,-500.0,0.00043835,30]
[325348055,1714746642737,-2314.8,0.00043835,30]
[325348057,1714746642746,-1046.45,0.00043835,30]
[325348059,1714746642757,-500.0,0.00043835,30]
[325348061,1714746642767,-1106.33,0.00043835,30]
[325348063,1714746642778,-500.0,0.00043835,30]
[325348065,1714746642788,-1129.95,0.00043835,30]
[325348067,1714746642798,-500.0,0.00043835,30]
[325348069,1714746642808,-1032.42,0.00043835,30]
[325348071,1714746642818,-500.0,0.00043835,2]
[325348074,1714746642828,-500.0,0.00043835,30]
[325348076,1714746642838,-500.0,0.00043835,30]
[325348077,1714746642848,-500.0,0.00043835,30]
[325348080,1714746642858,-500.0,0.00043835,30]
[325348082,1714746642869,-500.0,0.00043835,30]
[325348083,1714746642880,-520.33015134,0.00043835,30]
[325348086,1714746642890,-865.36,0.00043835,30]
[325348088,1714746642900,-500.0,0.00043835,30]
[325348090,1714746642910,-500.0,0.00043835,30]
[325348092,1714746642920,-514.76,0.00043835,30]
[325348094,1714746642929,-1068.45,0.00043835,30]
[325348096,1714746642939,-500.0,0.00043835,30]
[325348098,1714746642948,-1098.47,0.00043835,30]
[325348100,1714746642958,-500.0,0.00043835,30]
[325348102,1714746642968,-500.0,0.00043835,30]
[325348104,1714746642977,-500.0,0.00043835,30]
[325348106,1714746642987,-500.0,0.00043835,30]
[325348108,1714746642997,-500.0,0.00043835,30]
[325348110,1714746643006,-500.0,0.00043835,30]
[325348112,1714746643015,-500.0,0.00043835,30]
[325348114,1714746643025,-500.0,0.00043835,30]
[325348116,1714746643034,-1783.81,0.00043835,30]
[325348118,1714746643044,-851.49,0.00043835,30]
[325348120,1714746643054,-1513.69,0.00043835,30]
[325348122,1714746643064,-946.34,0.00043835,30]
[325348124,1714746643074,-924.79,0.00043835,30]
[325348126,1714746643084,-592.18680952,0.00043835,30]
[325348128,1714746643094,-1091.37,0.00043835,7]
[325348130,1714746643104,-648.29,0.00043835,30]
[325348132,1714746643114,-500.0,0.00043835,30]
[325348134,1714746643124,-500.0,0.00043835,30]
[325348136,1714746643134,-1098.97,0.00043835,30]
[325348138,1714746643144,-500.0,0.00043835,30]
[325348140,1714746643154,-453.68016686,0.00043835,30]
[325348142,1714746643164,-500.0,0.00043835,30]
[325348144,1714746643174,-500.0,0.00043835,30]
[325348146,1714746643183,-1607.8,0.00043835,30]
[325348148,1714746643192,-2082.47,0.00043835,30]
[325348150,1714746643202,-1815.33,0.00043835,30]
[325348152,1714746643212,-1513.58,0.00043835,30]
[325348157,1714746643221,-500.0,0.00043835,30]
[325348160,1714746643232,-500.0,0.00043835,30]
[325348163,1714746643242,-1132.76,0.00043835,30]
[325348166,1714746643256,-1358.0,0.00043835,30]
[325348168,1714746643265,-676.74,0.00043835,30]
[325348169,1714746643281,-500.0,0.00043835,30]
[325348170,1714746643292,-500.0,0.00043835,30]
[325348171,1714746643302,-606.58,0.00043835,30]
[325348173,1714746643311,-2050.03,0.00043835,30]
[325348175,1714746643322,-1203.2,0.00043835,30]
[325348177,1714746643332,-869.59,0.00043835,30]
[325348179,1714746643343,-500.0,0.00043835,30]
[325348181,1714746643352,-500.0,0.00043835,30]
[325348183,1714746643362,-500.0,0.00043835,30]
[325348185,1714746643371,-500.0,0.00043835,30]
[325348187,1714746643380,-536.02,0.00043835,30]
[325348189,1714746643390,-777.95,0.00043835,30]
[325348191,1714746643399,-500.0,0.00043835,30]
[325348193,1714746643409,-1008.8,0.00043835,30]
[325348195,1714746643420,-500.0,0.00043835,30]
[325348197,1714746643430,-500.0,0.00043835,30]
[325348199,1714746643440,-500.0,0.00043835,30]
[325348201,1714746643450,-500.0,0.00043835,30]
[325348204,1714746643459,-1301.52,0.00043835,30]
[325348207,1714746643470,-997.14,0.00043835,30]
[325348210,1714746643480,-795.24,0.00043835,30]
[325348214,1714746643492,-1667.27,0.00043835,30]
[325348217,1714746643501,-2912.02,0.00043835,30]
[325348220,1714746643511,-170.9610414,0.00043835,30]
[325348223,1714746643521,-500.0,0.00043835,30]
[325348226,1714746643530,-500.0,0.00043835,30]
[325348229,1714746643539,-500.0,0.00043835,30]
[325348232,1714746643549,-834.7,0.00043835,30]
[325348235,1714746643559,-1742.03,0.00043835,30]
[325348238,1714746643569,-500.0,0.00043835,30]
[325348243,1714746643585,-500.0,0.00043835,30]
[325348246,1714746643595,-500.0,0.00043835,30]
[325348249,1714746643605,-515.38,0.00043835,30]
[325348252,1714746643616,-918.5,0.00043835,30]
[325348255,1714746643626,-500.0,0.00043835,30]
[325348259,1714746643636,-500.0,0.00043835,30]
[325348263,1714746643647,-1591.37,0.00043835,30]
[325348265,1714746643658,-500.0,0.00043835,30]
[325348267,1714746643668,-500.0,0.00043835,30]
[325348269,1714746643678,-500.0,0.00043835,30]
[325348271,1714746643688,-907.43,0.00043835,30]
[325348273,1714746643698,-1922.92,0.00043835,30]
[325348275,1714746643709,-510.51,0.00043835,30]
[325348277,1714746643719,-1637.34,0.00043835,30]
[325348279,1714746643728,-1589.24,0.00043835,30]
[325348281,1714746643739,-1861.31,0.00043835,30]
[325348283,1714746643749,-512.6976661,0.00043835,30]
[325348285,1714746643760,-1091.24,0.00043835,30]
[325348288,1714746643770,-500.0,0.00043835,30]
[325348290,1714746643780,-680.51,0.00043835,30]
[325348292,1714746643790,-2206.34,0.00043835,30]
[325348294,1714746643800,-2248.26,0.00043835,30]
[325348296,1714746643811,-502.58140981,0.00043835,30]
[325348298,1714746643821,-584.39,0.00043835,2]
[325348300,1714746643831,-500.0,0.00043835,30]
[325348302,1714746643841,-500.0,0.00043835,30]
[325348304,1714746643851,-500.0,0.00043835,30]
[325348306,1714746643862,-500.0,0.00043835,30]
[325348308,1714746643873,-1066.92,0.00043835,30]
[325348310,1714746643884,-500.0,0.00043835,30]
[325348312,1714746643894,-554.61,0.00043835,30]
[325348314,1714746643904,-3127.52,0.00043835,30]
[325348316,1714746643914,-2462.7,0.00043835,30]
[325348318,1714746643924,-954.7,0.00043835,30]
[325348320,1714746643934,-500.0,0.00043835,30]
[325348323,1714746643944,-500.0,0.00043835,30]
[325348325,1714746643954,-500.0,0.00043835,30]
[325348327,1714746643964,-500.0,0.00043835,30]
[325348329,1714746643974,-500.0,0.00043835,30]
[325348331,1714746643984,-1325.46,0.00043835,30]
[325348333,1714746643994,-515.82184103,0.00043835,30]
[325348335,1714746644004,-500.0,0.00043835,30]
[325348337,1714746644014,-501.32,0.00043835,30]
[325348339,1714746644023,-2892.15,0.00043835,30]
[325348341,1714746644033,-500.0,0.00043835,30]
[325348343,1714746644043,-500.0,0.00043835,30]
[325348346,1714746644053,-1152.37,0.00043835,30]
[325348349,1714746644063,-1510.35,0.00043835,30]
[325348352,1714746644074,-500.0,0.00043835,30]
[325348354,1714746644084,-500.0,0.00043835,30]
[325348356,1714746644095,-500.0,0.00043835,30]
[325348357,1714746644106,-300.0,0.00043835,7]
[325348359,1714746644117,-1265.08,0.00043835,30]
[325348361,1714746644127,-500.0,0.00043835,30]
[325348362,1714746644138,-1251.98,0.00043835,30]
[325348364,1714746644148,-1096.1,0.00043835,30]
[325348366,1714746644158,-630.52361867,0.00043835,30]
[325348367,1714746644168,-1163.8,0.00043835,2]
[325348369,1714746644178,-2527.88,0.00043835,30]
[325348371,1714746644188,-526.23,0.00043835,30]
[325348372,1714746644198,-500.0,0.00043835,30]
[325348374,1714746644208,-500.0,0.00043835,30]
[325348376,1714746644218,-500.0,0.00043835,30]
[325348377,1714746644231,-500.0,0.00043835,30]
[325348379,1714746644241,-1040.83,0.00043835,30]
[325348381,1714746644251,-500.0,0.00043835,30]
[325348383,1714746644261,-500.0,0.00043835,30]
[325348384,1714746644271,-844.73,0.00043835,30]
[325348386,1714746644281,-943.84,0.00043835,30]
[325348388,1714746644291,-500.0,0.00043835,30]
[325348390,1714746644301,-594.61,0.00043835,30]
[325348391,1714746644314,-500.0,0.00043835,30]
[325348393,1714746644324,-695.37,0.00043835,30]
[325348394,1714746644334,-1282.37,0.00043835,30]
[325348396,1714746644344,-2730.14,0.00043835,30]
[325348398,1714746644354,-1762.26,0.00043835,30]
[325348400,1714746644363,-500.0,0.00043835,30]
[325348401,1714746644373,-565.57,0.00043835,30]
[325348403,1714746644383,-1747.07,0.00043835,30]
[325348405,1714746644392,-670.0,0.00043835,30]
[325348407,1714746644402,-500.0,0.00043835,30]
[325348409,1714746644425,-500.0,0.00043835,30]
[325348411,1714746644435,-861.2,0.00043835,30]
[325348412,1714746644445,-500.0,0.00043835,30]
[325348414,1714746644455,-1079.96,0.00043835,30]
[325348416,1714746644467,-1833.76,0.00043835,30]
[325348418,1714746644477,-500.0,0.00043835,30]
[325348419,1714746644486,-772.84,0.00043835,30]
[325348421,1714746644497,-669.74,0.00043835,30]
[325348423,1714746644507,-500.0,0.00043835,30]
[325348425,1714746644517,-500.0,0.00043835,30]
[325348426,1714746644527,-500.0,0.00043835,2]
[325348428,1714746644537,-437.63468295,0.00043835,30]
[325348430,1714746644546,-986.21,0.00043835,30]
[325348432,1714746644556,-500.0,0.00043835,30]
[325348434,1714746644566,-1177.96,0.00043835,30]
[325348435,1714746644575,-500.0,0.00043835,2]
[325348437,1714746644584,-518.5888693,0.00043835,30]
[325348439,1714746644594,-500.0,0.00043835,30]
[325348440,1714746644604,-779.11,0.00043835,30]
[325348442,1714746644614,-500.0,0.00043835,30]
[325348444,1714746644623,-1377.21,0.00043835,30]
[325348446,1714746644633,-3010.68,0.00043835,30]
[325348447,1714746644643,-1149.11,0.00043835,30]
[325348449,1714746644652,-927.97,0.00043835,30]
[325348451,1714746644663,-1689.11,0.00043835,30]
[325348453,1714746644674,-2105.3,0.00043835,30]
[325348455,1714746644684,-500.0,0.00043835,30]
[325348456,1714746644694,-500.0,0.00043835,30]
[325348458,1714746644703,-539.96,0.00043835,30]
[325348460,1714746644713,-595.56,0.00043835,30]
[325348462,1714746644723,-619.57,0.00043835,30]
[325348464,1714746644732,-500.0,0.00043835,30]
[325348465,1714746644743,-773.57,0.00043835,30]
[325348467,1714746644753,-441.95708341,0.00043835,30]
[325348469,1714746644763,-1252.96,0.00043835,30]
[325348471,1714746644774,-500.0,0.00043835,30]
[325348473,1714746644783,-1835.84,0.00043835,30]
[325348474,1714746644793,-548.76,0.00043835,30]
[325348476,1714746644803,-1000.08,0.00043835,30]
[325348478,1714746644814,-632.04,0.00043835,30]
[325348480,1714746644824,-3071.93,0.00043835,30]
[325348481,1714746644834,-500.0,0.00043835,30]
[325348483,1714746644844,-500.0,0.00043835,30]
[325348485,1714746644853,-1117.0,0.00043835,30]
[325348487,1714746644863,-1508.4,0.00043835,30]
[325348488,1714746644875,-500.0,0.00043835,30]
[325348490,1714746644886,-500.0,0.00043835,30]
[325348492,1714746644895,-500.0,0.00043835,30]
[325348494,1714746644906,-390.30481248,0.00043835,30]
[325348496,1714746644916,-1000.0,0.00043835,15]
[325348497,1714746644927,-691.24,0.00043835,30]
[325348499,1714746644938,-1841.09,0.00043835,30]
[325348501,1714746644947,-1519.12,0.00043835,30]
[325348503,1714746644958,-1741.6,0.00043835,30]
[325348505,1714746644968,-500.0,0.00043835,30]
[325348506,1714746644978,-506.43969181,0.00043835,30]
[325348508,1714746644988,-1192.32,0.00043835,30]
[325348510,1714746644998,-500.0,0.00043835,30]
[325348512,1714746645007,-500.0,0.00043835,30]
[325348513,1714746645017,-500.0,0.00043835,30]
[325348515,1714746645027,-1506.6,0.00043835,30]
[325348517,1714746645035,-1289.45,0.00043835,30]
[325348518,1714746645045,-500.0,0.00043835,30]
[325348520,1714746645055,-1038.43,0.00043835,30]
[325348522,1714746645066,-500.0,0.00043835,30]
[325348524,1714746645076,-500.0,0.00043835,30]
[325348526,1714746645085,-500.0,0.00043835,30]
[325348527,1714746645095,-500.0,0.00043835,30]
[325348529,1714746645105,-500.0,0.00043835,30]
[325348531,1714746645115,-765.35,0.00043835,30]
[325348533,1714746645124,-1053.19,0.00043835,30]
[325348535,1714746645134,-2596.94,0.00043835,10]
[325348537,1714746645143,-500.0,0.00043835,30]
[325348539,1714746645152,-1713.0,0.00043835,30]
[325348541,1714746645162,-500.0,0.00043835,30]
[325348542,1714746645171,-1196.68,0.00043835,30]
[325348543,1714746645180,-520.25,0.00043835,30]
[325348544,1714746645190,-530.97,0.00043835,30]
[325348545,1714746645199,-1512.32,0.00043835,30]
[325348546,1714746645208,-500.0,0.00043835,30]
[325348547,1714746645217,-500.0,0.00043835,30]
[325348548,1714746645228,-614.73,0.00043835,30]
[325348549,1714746645238,-516.34371327,0.00043835,30]
[325348550,1714746645248,-767.38,0.00043835,30]
[325348551,1714746645258,-2049.33,0.00043835,30]
[325348552,1714746645267,-500.0,0.00043835,30]
[325348553,1714746645278,-500.0,0.00043835,30]
[325348554,1714746645287,-1448.03,0.00043835,30]
[325348555,1714746645296,-500.0,0.00043835,30]
[325348556,1714746645306,-1279.38,0.00043835,30]
[325348557,1714746645316,-500.0,0.00043835,30]
[325348558,1714746645327,-500.0,0.00043835,30]
[325348560,1714746645336,-1508.95,0.00043835,30]
[325348562,1714746645345,-500.0,0.00043835,30]
[325348564,1714746645355,-2414.27,0.00043835,30]
[325348566,1714746645364,-500.0,0.00043835,30]
[325348568,1714746645374,-500.0,0.00043835,30]
[325348569,1714746645383,-500.0,0.00043835,30]
[325348571,1714746645393,-1281.05,0.00043835,30]
[325348573,1714746645402,-500.0,0.00043835,30]
[325348576,1714746645413,-2804.83,0.00043835,2]
[325348578,1714746645423,-785.84,0.00043835,30]
[325348580,1714746645432,-500.0,0.00043835,30]
[325348582,1714746645442,-500.0,0.00043835,30]
[325348584,1714746645451,-500.0,0.00043835,30]
[325348586,1714746645461,-1300.51,0.00043835,30]
[325348588,1714746645471,-500.0,0.00043835,30]
[325348590,1714746645481,-500.0,0.00043835,30]
[325348592,1714746645491,-609.66476088,0.00043835,30]
[325348594,1714746645501,-1419.96,0.00043835,30]
[325348596,1714746645511,-500.0,0.00043835,30]
[325348598,1714746645521,-500.0,0.00043835,30]
[325348600,1714746645531,-2095.85,0.00043835,30]
[325348602,1714746645541,-500.0,0.00043835,30]
[325348604,1714746645551,-500.0,0.00043835,30]
[325348606,1714746645561,-798.1,0.00043835,30]
[325348639,1714746645865,-500.0,0.00043835,30]
[325348642,1714746645875,-500.0,0.00043835,30]
[325348644,1714746645886,-4130.2,0.00043835,30]
[325348646,1714746645895,-500.0,0.00043835,30]
[325348648,1714746645905,-500.0,0.00043835,30]
[325348650,1714746645915,-500.0,0.00043835,30]
[325348652,1714746645925,-500.0,0.00043835,30]
[325348653,1714746645934,-533.39,0.00043835,30]
[325348654,1714746645943,-1527.63,0.00043835,30]
[325348655,1714746645952,-500.0,0.00043835,30]
[325348656,1714746645962,-500.0,0.00043835,30]
[325348657,1714746645973,-503.3,0.00043835,30]
[325348659,1714746645984,-500.0,0.00043835,30]
[325348660,1714746645995,-500.0,0.00043835,30]
[325348661,1714746646005,-500.0,0.00043835,30]
[325348662,1714746646015,-1026.61,0.00043835,30]
[325348663,1714746646026,-500.0,0.00043835,30]
[325348664,1714746646036,-500.0,0.00043835,30]
[325348665,1714746646046,-1680.25,0.00043835,30]
[325348667,1714746646056,-1248.76,0.00043835,30]
[325348668,1714746646066,-1754.66,0.00043835,30]
[325348669,1714746646076,-1088.42,0.00043835,30]
[325348670,1714746646086,-500.0,0.00043835,30]
[325348671,1714746646096,-816.08,0.00043835,30]
[325348672,1714746646106,-500.0,0.00043835,30]
[325348673,1714746646116,-500.0,0.00043835,30]
[325348674,1714746646126,-626.08,0.00043835,30]
[325348675,1714746646135,-505.20745317,0.00043835,30]
[325348677,1714746646145,-500.0,0.00043835,30]
[325348679,1714746646154,-604.71,0.00043835,30]